[Event "Snabbschacks-KM 2025"]
[Site "Linköping, Sweden"]
[Date "2025.05.20"]
[Round "8.6"]
[White "Martinelle, Christoffer"]
[Black "Andersson, Fredrik 1969"]
[Result "0-1"]
[TimeControl "15 min + 5 sek"]
[WhiteElo "1806"]
[BlackElo "1754"]

1. c4 {[%clk 00:15:08]} {[%emt 00:00:01]} e5 {[%clk 00:15:08]} {[%emt
00:00:02]} 2. g3 {[%clk 00:15:10]} {[%emt 00:00:03]} Nf6 {[%clk 00:15:04]}
{[%emt 00:00:10]} 3. Bg2 {[%clk 00:15:11]} {[%emt 00:00:04]} d5 {[%clk
00:14:49]} {[%emt 00:00:20]} 4. cxd5 {[%clk 00:14:48]} {[%emt 00:00:28]} Nxd5
{[%clk 00:14:52]} {[%emt 00:00:02]} 5. Nc3 {[%clk 00:14:29]} {[%emt 00:00:23]}
Nb6 {[%clk 00:14:48]} {[%emt 00:00:09]} 6. Nf3 {[%clk 00:14:28]} {[%emt
00:00:05]} Nc6 {[%clk 00:14:51]} {[%emt 00:00:03]} 7. O-O {[%clk 00:14:29]}
{[%emt 00:00:04]} Be7 {[%clk 00:14:39]} {[%emt 00:00:16]} 8. d3 {[%clk
00:13:56]} {[%emt 00:00:39]} O-O {[%clk 00:14:36]} {[%emt 00:00:08]} 9. a3
{[%clk 00:13:59]} {[%emt 00:00:02]} a5 {[%clk 00:14:22]} {[%emt 00:00:19]} 10.
Be3 {[%clk 00:13:37]} {[%emt 00:00:27]} Be6 {[%clk 00:12:49]} {[%emt 00:01:37]}
11. Qc2 {[%clk 00:13:10]} {[%emt 00:00:29]} Nd4 {[%clk 00:11:58]} {[%emt
00:01:00]} 12. Bxd4 {[%clk 00:12:47]} {[%emt 00:00:27]} exd4 {[%clk 00:12:01]}
{[%emt 00:00:02]} 13. Nb5 {[%clk 00:12:10]} {[%emt 00:00:41]} c5 {[%clk
00:11:34]} {[%emt 00:00:32]} 14. Nd2 {[%clk 00:11:18]} {[%emt 00:00:57]} Bd5
{[%clk 00:11:16]} {[%emt 00:00:24]} 15. Ne4 {[%clk 00:10:25]} {[%emt 00:00:58]}
Rc8 {[%clk 00:10:06]} {[%emt 00:01:14]} 16. Rfc1 {[%clk 00:09:32]} {[%emt
00:00:58]} f5 {[%clk 00:09:43]} {[%emt 00:00:28]} 17. Nd2 {[%clk 00:09:26]}
{[%emt 00:00:11]} Bxg2 {[%clk 00:09:37]} {[%emt 00:00:11]} 18. Kxg2 {[%clk
00:09:29]} {[%emt 00:00:02]} Qd5+ {[%clk 00:09:38]} {[%emt 00:00:04]} 19. Kg1
{[%clk 00:09:17]} {[%emt 00:00:17]} f4 {[%clk 00:09:24]} {[%emt 00:00:19]} 20.
Qb3 {[%clk 00:09:10]} {[%emt 00:00:12]} fxg3 {[%clk 00:08:52]} {[%emt
00:00:37]} 21. hxg3 {[%clk 00:08:11]} {[%emt 00:01:04]} Kh8 {[%clk 00:08:12]}
{[%emt 00:00:45]} 22. Qxd5 {[%clk 00:08:14]} {[%emt 00:00:02]} Nxd5 {[%clk
00:08:17]} {[%emt 00:00:01]} 23. Ne4 {[%clk 00:08:02]} {[%emt 00:00:17]} b6
{[%clk 00:07:52]} {[%emt 00:00:30]} 24. Kg2 {[%clk 00:07:28]} {[%emt 00:00:39]}
Nf6 {[%clk 00:07:32]} {[%emt 00:00:25]} 25. Nxf6 {[%clk 00:07:13]} {[%emt
00:00:19]} Rxf6 {[%clk 00:07:33]} {[%emt 00:00:05]} 26. Rf1 {[%clk 00:06:25]}
{[%emt 00:00:52]} Re6 {[%clk 00:07:00]} {[%emt 00:00:38]} 27. Rfe1 {[%clk
00:06:06]} {[%emt 00:00:24]} Rf8 {[%clk 00:06:53]} {[%emt 00:00:12]} 28. a4
{[%clk 00:04:51]} {[%emt 00:01:21]} Bg5 {[%clk 00:06:35]} {[%emt 00:00:23]} 29.
f4 {[%clk 00:04:32]} {[%emt 00:00:24]} Bd8 {[%clk 00:06:21]} {[%emt 00:00:19]}
30. Rac1 {[%clk 00:04:12]} {[%emt 00:00:25]} Rg6 {[%clk 00:06:00]} {[%emt
00:00:26]} 31. Rf1 {[%clk 00:04:07]} {[%emt 00:00:10]} Re8 {[%clk 00:04:55]}
{[%emt 00:01:10]} 32. Rce1 {[%clk 00:04:10]} {[%emt 00:00:01]} Bh4 {[%clk
00:04:04]} {[%emt 00:00:56]} 33. Rf3 {[%clk 00:03:58]} {[%emt 00:00:17]} Re3
{[%clk 00:03:49]} {[%emt 00:00:21]} 34. Na3 {[%clk 00:01:46]} {[%emt 00:02:18]}
Bxg3 {[%clk 00:03:29]} {[%emt 00:00:24]} 35. Rxe3 {[%clk 00:01:14]} {[%emt
00:00:36]} Bxe1+ {[%emt 00:00:20]} 0-1

[Event "Snabbschacks-KM 2025"]
[Site "Linköping, Sweden"]
[Date "2025.05.20"]
[Round "8.8"]
[White "Stefanovic, Dragan 1958"]
[Black "Jakobsson, Leif"]
[Result "1-0"]
[TimeControl "15 min + 5 sek"]
[WhiteElo "1780"]
[BlackElo "1702"]

1. e4 {[%clk 00:15:07]} {[%emt 00:00:02]} d5 {[%clk 00:15:08]} {[%emt
00:00:02]} 2. d4 {[%clk 00:15:07]} {[%emt 00:00:06]} c6 {[%clk 00:14:57]}
{[%emt 00:00:16]} 3. e5 {[%clk 00:15:06]} {[%emt 00:00:05]} Bf5 {[%clk
00:14:54]} {[%emt 00:00:08]} 4. h4 {[%clk 00:15:07]} {[%emt 00:00:04]} e6
{[%clk 00:14:46]} {[%emt 00:00:13]} 5. g4 {[%clk 00:15:09]} {[%emt 00:00:03]}
Ne7 {[%clk 00:13:54]} {[%emt 00:00:57]} 6. Bg5 {[%clk 00:14:55]} {[%emt
00:00:20]} Be4 {[%clk 00:13:32]} {[%emt 00:00:26]} 7. f3 {[%clk 00:14:59]}
{[%emt 00:00:03]} Qa5+ {[%clk 00:13:16]} {[%emt 00:00:20]} 8. Nc3 {[%clk
00:14:50]} {[%emt 00:00:15]} h6 {[%clk 00:12:27]} {[%emt 00:00:54]} 9. Bxe7
{[%clk 00:14:53]} {[%emt 00:00:01]} Bxe7 {[%clk 00:12:29]} {[%emt 00:00:04]} 10.
fxe4 {[%clk 00:14:57]} {[%emt 00:00:01]} dxe4 {[%clk 00:12:20]} {[%emt
00:00:14]} 11. Qe2 {[%clk 00:14:35]} {[%emt 00:00:27]} Bb4 {[%clk 00:12:01]}
{[%emt 00:00:25]} 12. Qd2 {[%clk 00:14:26]} {[%emt 00:00:13]} Nd7 {[%clk
00:11:49]} {[%emt 00:00:16]} 13. a3 {[%clk 00:14:29]} {[%emt 00:00:03]} O-O-O
{[%clk 00:11:49]} {[%emt 00:00:05]} 14. O-O-O {[%clk 00:13:50]} {[%emt
00:00:44]} Nxe5 {[%clk 00:11:50]} {[%emt 00:00:03]} 15. axb4 {[%clk 00:13:21]}
{[%emt 00:00:34]} Qxb4 {[%clk 00:11:38]} {[%emt 00:00:17]} 16. Qf4 {[%clk
00:12:08]} {[%emt 00:01:17]} Ng6 {[%clk 00:11:09]} {[%emt 00:00:34]} 17. Qxe4
{[%clk 00:12:00]} {[%emt 00:00:13]} c5 {[%clk 00:09:50]} {[%emt 00:01:24]} 18.
Nf3 {[%clk 00:11:42]} {[%emt 00:00:23]} Rd6 {[%clk 00:09:41]} {[%emt 00:00:13]}
19. h5 {[%clk 00:10:58]} {[%emt 00:00:50]} Ne7 {[%clk 00:09:04]} {[%emt
00:00:42]} 20. Bg2 {[%clk 00:10:41]} {[%emt 00:00:23]} Rb6 {[%clk 00:08:53]}
{[%emt 00:00:15]} 21. dxc5 {[%clk 00:07:54]} {[%emt 00:02:52]} Qxb2+ {[%clk
00:08:37]} {[%emt 00:00:21]} 22. Kd2 {[%clk 00:07:57]} {[%emt 00:00:02]} Rd8+
{[%clk 00:08:30]} {[%emt 00:00:12]} 23. Nd4 {[%clk 00:08:01]} Rb4 {[%clk
00:08:12]} {[%emt 00:00:23]} 24. Ke2 {[%clk 00:04:18]} {[%emt 00:03:49]} Qxc3
{[%clk 00:07:19]} {[%emt 00:00:57]} 25. Rh3 {[%clk 00:04:20]} {[%emt 00:00:03]}
Qc4+ {[%clk 00:06:42]} {[%emt 00:00:41]} 26. Rhd3 {[%clk 00:04:07]} {[%emt
00:00:19]} Nd5 {[%clk 00:06:21]} {[%emt 00:00:26]} 27. Kf2 {[%clk 00:03:12]}
{[%emt 00:01:00]} Nc3 {[%clk 00:05:25]} {[%emt 00:01:02]} 28. Rxc3 {[%clk
00:02:21]} {[%emt 00:00:57]} Qxc3 {[%clk 00:05:24]} {[%emt 00:00:05]} 29. c6
{[%clk 00:01:47]} {[%emt 00:00:40]} Rdxd4 {[%clk 00:02:31]} {[%emt 00:02:56]}
30. cxb7+ {[%clk 00:01:37]} {[%emt 00:00:16]} Kb8 {[%clk 00:00:46]} {[%emt
00:01:50]} 31. Qe5+ {[%clk 00:00:27]} {[%emt 00:01:14]} Qc7 {[%clk 00:00:49]}
{[%emt 00:00:02]} 32. Qxd4 {[%clk 00:00:27]} {[%emt 00:00:06]} Rxd4 {[%clk
00:00:49]} {[%emt 00:00:06]} 33. Rxd4 {[%clk 00:00:31]} {[%emt 00:00:01]} Qe5
{[%clk 00:00:38]} {[%emt 00:00:12]} 34. Rd8+ {[%clk 00:00:32]} {[%emt
00:00:08]} Kc7 {[%clk 00:00:36]} {[%emt 00:00:07]} 35. b8=Q# {[%clk 00:00:30]}
{[%emt 00:00:07]} 1-0

[Event "Snabbschacks-KM 2025"]
[Site "Linköping, Sweden"]
[Date "2025.05.20"]
[Round "8.9"]
[White "Enblom, Samuel"]
[Black "Wallenberg, Per"]
[Result "1/2-1/2"]
[TimeControl "15 min + 5 sek"]
[WhiteElo "1696"]
[BlackElo "1604"]

1. d4 {[%clk 00:15:07]} {[%emt 00:00:02]} d5 {[%clk 00:15:08]} {[%emt
00:00:02]} 2. c4 {[%clk 00:15:10]} {[%emt 00:00:02]} e6 {[%clk 00:15:10]}
{[%emt 00:00:03]} 3. Nf3 {[%clk 00:15:07]} {[%emt 00:00:08]} Nf6 {[%clk
00:15:10]} {[%emt 00:00:04]} 4. Bg5 {[%clk 00:15:04]} {[%emt 00:00:08]} Be7
{[%clk 00:15:12]} {[%emt 00:00:03]} 5. cxd5 {[%clk 00:15:01]} {[%emt 00:00:09]}
exd5 {[%clk 00:15:02]} {[%emt 00:00:16]} 6. e3 {[%clk 00:14:19]} {[%emt
00:00:47]} O-O {[%clk 00:14:58]} {[%emt 00:00:08]} 7. Bd3 {[%clk 00:13:52]}
{[%emt 00:00:32]} Nbd7 {[%clk 00:14:42]} {[%emt 00:00:21]} 8. O-O {[%clk
00:13:31]} {[%emt 00:00:26]} Re8 {[%clk 00:14:09]} {[%emt 00:00:38]} 9. Ne5
{[%clk 00:13:01]} {[%emt 00:00:36]} Nf8 {[%clk 00:13:21]} {[%emt 00:00:52]} 10.
Nd2 {[%clk 00:11:26]} {[%emt 00:01:40]} Be6 {[%clk 00:12:31]} {[%emt 00:00:54]}
11. Qc2 {[%clk 00:11:15]} {[%emt 00:00:17]} c6 {[%clk 00:12:13]} {[%emt
00:00:22]} 12. Bxf6 {[%clk 00:10:18]} {[%emt 00:01:03]} Bxf6 {[%clk 00:12:03]}
{[%emt 00:00:14]} 13. f4 {[%clk 00:09:46]} {[%emt 00:00:37]} Rc8 {[%clk
00:09:48]} {[%emt 00:02:20]} 14. g4 {[%clk 00:08:29]} {[%emt 00:01:22]} Bxe5
{[%clk 00:08:58]} {[%emt 00:00:55]} 15. fxe5 {[%clk 00:08:21]} {[%emt
00:00:13]} Bxg4 {[%clk 00:07:49]} {[%emt 00:01:14]} 16. Bf5 {[%clk 00:08:07]}
{[%emt 00:00:19]} Bxf5 {[%clk 00:07:21]} {[%emt 00:00:34]} 17. Rxf5 {[%clk
00:07:30]} {[%emt 00:00:42]} g6 {[%clk 00:06:17]} {[%emt 00:01:08]} 18. Rf4
{[%clk 00:06:40]} {[%emt 00:00:55]} Qg5+ {[%clk 00:06:00]} {[%emt 00:00:21]} 19.
Kh1 {[%clk 00:06:27]} {[%emt 00:00:19]} Ne6 {[%clk 00:05:48]} {[%emt 00:00:17]}
20. Nf3 {[%clk 00:06:18]} {[%emt 00:00:14]} Qe7 {[%clk 00:05:33]} {[%emt
00:00:20]} 21. Rf6 {[%clk 00:05:58]} {[%emt 00:00:25]} c5 {[%clk 00:04:43]}
{[%emt 00:00:55]} 22. Qf2 {[%clk 00:05:28]} {[%emt 00:00:35]} cxd4 {[%clk
00:04:13]} {[%emt 00:00:35]} 23. exd4 {[%clk 00:05:30]} {[%emt 00:00:03]} Rc6
{[%clk 00:04:00]} {[%emt 00:00:17]} 24. Qh4 {[%clk 00:04:25]} {[%emt 00:01:08]}
Nf8 {[%clk 00:03:29]} {[%emt 00:00:37]} 25. Re1 {[%clk 00:03:35]} {[%emt
00:00:56]} Rec8 {[%clk 00:02:57]} {[%emt 00:00:36]} 26. Ng5 {[%clk 00:02:37]}
{[%emt 00:01:04]} Rxf6 {[%clk 00:02:33]} {[%emt 00:00:29]} 27. exf6 {[%clk
00:02:22]} {[%emt 00:00:21]} Qxf6 {[%clk 00:02:30]} {[%emt 00:00:08]} 28. Kg1
{[%clk 00:02:08]} {[%emt 00:00:19]} 1/2-1/2

[Event "Snabbschacks-KM 2025"]
[Site "Linköping, Sweden"]
[Date "2025.05.20"]
[Round "8.10"]
[White "Andersson, Albin"]
[Black "Larsson, Elin"]
[Result "1/2-1/2"]
[TimeControl "15 min + 5 sek"]
[WhiteElo "1728"]
[BlackElo "1783"]

1. e4 {[%clk 00:15:08]} {[%emt 00:00:01]} c5 {[%clk 00:15:09]} {[%emt
00:00:02]} 2. Nf3 {[%clk 00:15:11]} {[%emt 00:00:02]} g6 {[%clk 00:15:03]}
{[%emt 00:00:10]} 3. g3 {[%clk 00:15:11]} {[%emt 00:00:06]} Bg7 {[%clk
00:15:03]} {[%emt 00:00:05]} 4. Bg2 {[%clk 00:15:14]} {[%emt 00:00:02]} Nc6
{[%clk 00:15:01]} {[%emt 00:00:08]} 5. d3 {[%clk 00:15:13]} {[%emt 00:00:06]}
d6 {[%clk 00:14:37]} {[%emt 00:00:29]} 6. c3 {[%clk 00:15:14]} {[%emt
00:00:04]} Qb6 {[%clk 00:14:08]} {[%emt 00:00:34]} 7. O-O {[%clk 00:15:11]}
{[%emt 00:00:08]} Nf6 {[%clk 00:13:54]} {[%emt 00:00:19]} 8. a3 {[%clk
00:15:12]} {[%emt 00:00:05]} a5 {[%clk 00:13:24]} {[%emt 00:00:35]} 9. a4
{[%clk 00:15:15]} {[%emt 00:00:02]} O-O {[%clk 00:11:46]} {[%emt 00:01:41]} 10.
Na3 {[%clk 00:15:18]} {[%emt 00:00:03]} Be6 {[%clk 00:10:21]} {[%emt 00:01:30]}
11. Be3 {[%clk 00:14:21]} {[%emt 00:01:02]} Ng4 {[%clk 00:07:32]} {[%emt
00:02:54]} 12. Nb5 {[%clk 00:12:31]} {[%emt 00:01:55]} Na7 {[%clk 00:06:52]}
{[%emt 00:00:45]} 13. Nxa7 {[%clk 00:11:55]} {[%emt 00:00:41]} Rxa7 {[%clk
00:05:59]} {[%emt 00:00:58]} 14. Qd2 {[%clk 00:11:18]} {[%emt 00:00:42]} Rc8
{[%clk 00:03:02]} {[%emt 00:03:02]} 15. Rab1 {[%clk 00:09:43]} {[%emt
00:01:40]} Bb3 {[%clk 00:02:30]} {[%emt 00:00:37]} 16. Ra1 {[%clk 00:09:30]}
{[%emt 00:00:19]} Qc6 {[%clk 00:00:59]} {[%emt 00:01:36]} 17. e5 {[%clk
00:08:09]} {[%emt 00:01:25]} d5 {[%clk 00:00:28]} {[%emt 00:00:36]} 18. d4
{[%clk 00:06:52]} {[%emt 00:01:22]} Nxe3 {[%clk 00:00:20]} {[%emt 00:00:12]} 19.
fxe3 {[%clk 00:06:44]} {[%emt 00:00:14]} c4 {[%clk 00:00:11]} {[%emt 00:00:14]}
20. e4 {[%clk 00:05:33]} {[%emt 00:01:15]} e6 {[%clk 00:00:09]} {[%emt
00:00:07]} 21. Ng5 {[%clk 00:05:05]} {[%emt 00:00:33]} b6 {[%clk 00:00:09]}
{[%emt 00:00:06]} 22. Qf2 {[%clk 00:04:38]} {[%emt 00:00:31]} Rcc7 {[%clk
00:00:12]} {[%emt 00:00:03]} 23. exd5 {[%clk 00:03:58]} {[%emt 00:00:45]} exd5
{[%clk 00:00:15]} {[%emt 00:00:01]} 24. Nh3 {[%clk 00:03:49]} {[%emt 00:00:13]}
Bxa4 {[%clk 00:00:15]} {[%emt 00:00:06]} 25. Bxd5 {[%clk 00:03:41]} {[%emt
00:00:13]} Qxd5 {[%clk 00:00:13]} {[%emt 00:00:06]} 26. Rxa4 {[%clk 00:03:45]}
{[%emt 00:00:02]} b5 {[%clk 00:00:12]} {[%emt 00:00:06]} 27. Raa1 {[%clk
00:03:41]} {[%emt 00:00:09]} Re7 {[%clk 00:00:12]} {[%emt 00:00:06]} 28. Nf4
{[%clk 00:03:36]} {[%emt 00:00:10]} Qd7 {[%clk 00:00:11]} {[%emt 00:00:06]} 29.
Rfe1 {[%clk 00:02:48]} {[%emt 00:00:52]} Bh6 {[%clk 00:00:10]} {[%emt
00:00:06]} 30. Rad1 {[%clk 00:02:26]} {[%emt 00:00:28]} b4 {[%clk 00:00:09]}
{[%emt 00:00:07]} 31. d5 {[%clk 00:02:09]} {[%emt 00:00:21]} Bxf4 {[%clk
00:00:09]} {[%emt 00:00:04]} 32. gxf4 {[%clk 00:02:01]} {[%emt 00:00:14]} b3
{[%clk 00:00:08]} {[%emt 00:00:05]} 33. e6 {[%clk 00:01:20]} {[%emt 00:00:46]}
Qd6 {[%clk 00:00:08]} {[%emt 00:00:05]} 34. exf7+ {[%clk 00:01:22]} {[%emt
00:00:02]} Rxf7 {[%clk 00:00:09]} {[%emt 00:00:04]} 35. Re8+ {[%clk 00:01:18]}
{[%emt 00:00:09]} Kg7 {[%clk 00:00:14]} {[%emt 00:00:01]} 36. Qd4+ {[%clk
00:01:12]} {[%emt 00:00:10]} Qf6 {[%clk 00:00:10]} {[%emt 00:00:09]} 37. Qxc4
{[%clk 00:00:55]} {[%emt 00:00:22]} Qxf4 {[%clk 00:00:08]} {[%emt 00:00:06]} 38.
Qxf4 {[%clk 00:00:46]} {[%emt 00:00:14]} Rxf4 {[%clk 00:00:11]} {[%emt
00:00:02]} 39. d6 {[%clk 00:00:46]} {[%emt 00:00:05]} Rd7 {[%clk 00:00:09]}
{[%emt 00:00:08]} 40. Re7+ {[%clk 00:00:16]} {[%emt 00:00:36]} Rxe7 {[%clk
00:00:12]} {[%emt 00:00:01]} 41. dxe7 {[%clk 00:00:20]} {[%emt 00:00:01]} Kf7
{[%clk 00:00:16]} 42. Rd7 {[%clk 00:00:21]} {[%emt 00:00:04]} Re4 {[%clk
00:00:13]} {[%emt 00:00:08]} 43. Ra7 {[%clk 00:00:17]} {[%emt 00:00:10]} a4
{[%clk 00:00:10]} {[%emt 00:00:08]} 44. Kf2 {[%clk 00:00:17]} {[%emt 00:00:04]}
Rxe7 {[%clk 00:00:07]} {[%emt 00:00:07]} 45. Rxa4 {[%emt 00:00:06]} Rb7 {[%clk
00:00:09]} 46. Rh4 {[%clk 00:00:16]} {[%emt 00:00:08]} Kf6 {[%clk 00:00:09]}
{[%emt 00:00:04]} 47. Kf3 {[%clk 00:00:16]} {[%emt 00:00:05]} g5 {[%clk
00:00:08]} {[%emt 00:00:06]} 48. Rh6+ {[%clk 00:00:15]} {[%emt 00:00:06]} Kf5
{[%clk 00:00:07]} {[%emt 00:00:07]} 49. Rh5 {[%clk 00:00:14]} {[%emt 00:00:05]}
Ra7 {[%clk 00:00:11]} {[%emt 00:00:02]} 50. h4 {[%clk 00:00:15]} {[%emt
00:00:04]} Rg7 {[%clk 00:00:09]} {[%emt 00:00:07]} 51. hxg5 {[%clk 00:00:16]}
{[%emt 00:00:04]} Kg6 {[%clk 00:00:07]} {[%emt 00:00:07]} 52. Kg4 {[%clk
00:00:08]} {[%emt 00:00:13]} Ra7 {[%clk 00:00:07]} {[%emt 00:00:05]} 53. Rh6+
{[%clk 00:00:11]} {[%emt 00:00:02]} Kg7 {[%clk 00:00:11]} {[%emt 00:00:01]} 54.
Rb6 {[%clk 00:00:13]} {[%emt 00:00:03]} Ra4+ {[%clk 00:00:10]} {[%emt
00:00:06]} 55. Kg3 {[%clk 00:00:17]} {[%emt 00:00:01]} Ra5 {[%clk 00:00:08]}
{[%emt 00:00:07]} 56. Rxb3 {[%clk 00:00:18]} {[%emt 00:00:04]} Rxg5+ {[%clk
00:00:12]} {[%emt 00:00:01]} 57. Kh4 {[%clk 00:00:20]} {[%emt 00:00:03]} Rg2
{[%clk 00:00:10]} {[%emt 00:00:07]} 58. Rb7+ {[%clk 00:00:24]} {[%emt
00:00:02]} Kg6 {[%clk 00:00:11]} {[%emt 00:00:04]} 59. Rb8 {[%clk 00:00:26]}
{[%emt 00:00:03]} Kf5 {[%clk 00:00:10]} {[%emt 00:00:06]} 60. Kh3 {[%clk
00:00:16]} {[%emt 00:00:14]} Rc2 {[%clk 00:00:08]} {[%emt 00:00:07]} 61. Rb7
{[%clk 00:00:14]} {[%emt 00:00:07]} Ke4 {[%clk 00:00:08]} {[%emt 00:00:05]} 62.
Rc7 {[%clk 00:00:13]} {[%emt 00:00:06]} Rxb2 {[%clk 00:00:10]} {[%emt
00:00:03]} 63. Rxh7 {[%clk 00:00:15]} {[%emt 00:00:03]} Rc2 {[%clk 00:00:09]}
{[%emt 00:00:05]} 64. Rc7 {[%clk 00:00:17]} {[%emt 00:00:03]} Kd3 {[%clk
00:00:12]} {[%emt 00:00:02]} 65. c4 {[%clk 00:00:20]} {[%emt 00:00:03]} Rxc4
{[%clk 00:00:15]} {[%emt 00:00:02]} 66. Rxc4 {[%clk 00:00:18]} {[%emt
00:00:01]} 1/2-1/2